[Event "Mitropa Online Cup Women 2021"]
[Site "Hybrid"]
[Date "2021.05.04"]
[Round "1.5"]
[White "Guichard, Pauline"]
[Black "Novkovic, Julia"]
[Result "1-0"]
[ECO "E92"]
[WhiteElo "2415"]
[BlackElo "2170"]
[Annotator "NA"]
[PlyCount "69"]
[EventDate "2021.05.04"]
[EventType "team-tourn"]
[EventCountry "NET"]
[SourceTitle "playchess.com"]
[Source "ChessBase"]
[SourceQuality "1"]
[WhiteTeam "France"]
[BlackTeam "Austria"]
[WhiteTeamCountry "FRA"]
[BlackTeamCountry "AUT"]
[TimeControl "40/5400+30:1800+30"]

1. d4 {[%emt 0:00:00]} Nf6 {[%emt 0:00:18]} 2. c4 {[%emt 0:00:19]} g6 {[%emt 0:00:25]} 3. Nc3 {[%emt 0:00:11]} Bg7 {[%emt 0:00:46]} 4. e4 {[%emt 0:00:19]} d6 {[%emt 0:00:20]} 5. Nf3 {[%emt 0:00:20]} O-O {[%emt 0:01:08]} 6. Be2 {[%emt 0:00:16]} e5 {[%emt 0:02:15]} 7. Be3 {[%emt 0:00:20]} Nc6 {[%emt 0:06:39]} 8. d5 {[%emt 0:00:31]} Ne7 {[%emt 0:01:24]} 9. Nd2 {[%emt 0:00:20]} Ne8 {[%emt 0:05:54]} 10. c5 {[%emt 0:05:48]} f5 {[%emt 0:13:42]} 11. f3 {[%emt 0:00:45]} Kh8 {[%emt 0:09:39]} 12. Nc4 {[%emt 0:02:47]} Ng8 {[%emt 0:05:21]} 13. O-O {[%emt 0:13:59]} Ngf6 {[%emt 0:08:36]} 14. cxd6 {[%emt 0:04:39]} cxd6 {[%emt 0:00:37]} 15. Rc1 {[%emt 0:07:57]} Nh5 {[%emt 0:19:04]} 16. Nb5 {[%emt 0:10:14]} Nf4 {[%emt 0:02:58]} 17. Nxa7 {[%emt 0:02:24]} Qg5 {[%emt 0:09:52]} 18. Bxf4 {[%emt 0:06:01]} exf4 {[%emt 0:00:13]} 19. Nxc8 {[%emt 0:05:53]} Rxc8 {[%emt 0:00:05]} 20. e5 {[%emt 0:00:19]} Rxc4 {[%emt 0:02:42]} 21. Rxc4 {[%emt 0:01:03]} dxe5 {[%emt 0:01:55]} 22. d6 {[%emt 0:09:53]} Qd8 {[%emt 0:00:08]} 23. d7 {[%emt 0:00:44]} Nf6 {[%emt 0:00:13]} 24. Rc8 {[%emt 0:03:22]} Qxd7 {[%emt 0:01:35]} 25. Qxd7 {[%emt 0:00:08]} Nxd7 {[%emt 0:00:26]} 26. Rc7 {[%emt 0:00:07]} Nf6 {[%emt 0:02:40]} 27. Rxb7 {[%emt 0:02:33]} Rc8 {[%emt 0:00:23]} 28. a4 {[%emt 0:00:53]} Bf8 {[%emt 0:02:28]} 29. a5 {[%emt 0:05:24]} Nd5 {[%emt 0:00:52]} 30. a6 {[%emt 0:03:36]} Rc2 {[%emt 0:01:19]} 31. Bd3 {[%emt 0:01:20]} Bc5+ {[%emt 0:00:26]} 32. Kh1 {[%emt 0:00:10]} Rd2 {[%emt 0:00:03]} 33. Rb5 {[%emt 0:00:42]} Ne3 {[%emt 0:01:21]} 34. Rxc5 {[%emt 0:00:25]} Rxd3 {[%emt 0:00:36]} 35. a7 {[%emt 0:00:51]} 1-0

[Event "Mitropa Online Cup Women 2021"]
[Site "Hybrid"]
[Date "2021.05.04"]
[Round "1.5"]
[White "Monpeurt, Cyrielle"]
[Black "Froewis, Annika"]
[Result "1-0"]
[ECO "C41"]
[WhiteElo "2166"]
[BlackElo "2143"]
[Annotator "NA"]
[PlyCount "111"]
[EventDate "2021.05.04"]
[EventType "team-tourn"]
[EventCountry "NET"]
[SourceTitle "playchess.com"]
[Source "ChessBase"]
[SourceQuality "1"]
[WhiteTeam "France"]
[BlackTeam "Austria"]
[WhiteTeamCountry "FRA"]
[BlackTeamCountry "AUT"]
[TimeControl "40/5400+30:1800+30"]

1. e4 {[%emt 0:00:00]} e5 {[%emt 0:00:06]} 2. Nf3 {[%emt 0:00:13]} d6 {[%emt 0:00:06]} 3. d4 {[%emt 0:00:13]} exd4 {[%emt 0:00:05]} 4. Nxd4 {[%emt 0:00:18]} Nf6 {[%emt 0:00:04]} 5. Nc3 {[%emt 0:00:25]} Be7 {[%emt 0:00:05]} 6. Bf4 {[%emt 0:00:27]} O-O {[%emt 0:00:05]} 7. Qd2 {[%emt 0:01:05]} d5 {[%emt 0:11:32]} 8. Ndb5 {[%emt 0:09:00]} c6 {[%emt 0:10:15]} 9. Nc7 {[%emt 0:02:53]} Bb4 {[%emt 0:00:44]} 10. exd5 {[%emt 0:19:51]} Re8+ {[%emt 0:25:32]} 11. Nxe8 {[%emt 0:07:07]} Qxe8+ {[%emt 0:00:21]} 12. Qe3 {[%emt 0:04:14]} Qxe3+ {[%emt 0:06:25]} 13. Bxe3 {[%emt 0:02:49]} Bxc3+ {[%emt 0:03:55]} 14. bxc3 {[%emt 0:00:14]} cxd5 {[%emt 0:00:44]} 15. Rb1 {[%emt 0:10:55]} b6 {[%emt 0:02:46]} 16. Bd3 {[%emt 0:06:37]} Nc6 {[%emt 0:07:37]} 17. O-O {[%emt 0:02:46]} Be6 {[%emt 0:03:34]} 18. Bd4 {[%emt 0:04:19]} Ne8 {[%emt 0:01:57]} 19. f4 {[%emt 0:09:37]} f5 {[%emt 0:07:43]} 20. Rfe1 {[%emt 0:00:54]} Kf7 {[%emt 0:01:33]} 21. Bb5 {[%emt 0:02:10]} Na5 {[%emt 0:05:37]} 22. Be5 {[%emt 0:04:24]} Rc8 {[%emt 0:01:05]} 23. Rbd1 {[%emt 0:00:47]} g6 {[%emt 0:01:08]} 24. Rd3 {[%emt 0:01:46]} Nc4 {[%emt 0:01:34]} 25. Bxc4 {[%emt 0:00:34]} Rxc4 {[%emt 0:00:11]} 26. Rh3 {[%emt 0:00:58]} h5 {[%emt 0:02:13]} 27. Rhe3 {[%emt 0:00:16]} Ra4 {[%emt 0:01:42]} 28. Ra1 {[%emt 0:05:35]} b5 {[%emt 0:00:18]} 29. Rd3 {[%emt 0:01:03]} a6 {[%emt 0:03:57]} 30. g3 {[%emt 0:00:36]} Ke7 {[%emt 0:01:14]} 31. Kf2 {[%emt 0:00:25]} Kd7 {[%emt 0:00:07]} 32. Rd4 {[%emt 0:00:59]} Ra3 {[%emt 0:00:08]} 33. Rd3 {[%emt 0:00:30]} Ra4 {[%emt 0:00:15]} 34. a3 {[%emt 0:00:29]} Kc6 {[%emt 0:01:44]} 35. Rd4 {[%emt 0:00:13]} Ra5 {[%emt 0:00:32]} 36. a4 {[%emt 0:00:45]} Kc5 {[%emt 0:00:10]} 37. Ke3 {[%emt 0:01:23]} Bd7 {[%emt 0:00:06]} 38. Rad1 {[%emt 0:00:19]} Bc6 {[%emt 0:00:05]} 39. axb5 {[%emt 0:00:24]} axb5 {[%emt 0:01:38]} 40. Rb4 {[%emt 0:00:00]} Ra2 {[%emt 0:00:00]} 41. Kd3 {[%emt 0:01:46]} Bd7 {[%emt 0:05:37]} 42. Rbb1 {[%emt 0:05:26]} Ra4 {[%emt 0:10:02]} 43. Ra1 {[%emt 0:00:49]} Bc6 {[%emt 0:06:16]} 44. Rdb1 {[%emt 0:00:37]} Bd7 {[%emt 0:03:38]} 45. Rxa4 {[%emt 0:09:46]} bxa4 {[%emt 0:00:05]} 46. Bd4+ {[%emt 0:00:14]} Kd6 {[%emt 0:00:13]} 47. c4 {[%emt 0:05:10]} dxc4+ {[%emt 0:02:12]} 48. Kxc4 {[%emt 0:00:25]} Be6+ {[%emt 0:00:56]} 49. Kb4 {[%emt 0:00:19]} Kd5 {[%emt 0:00:25]} 50. Be5 {[%emt 0:00:15]} Bd7 {[%emt 0:00:58]} 51. Rd1+ {[%emt 0:00:20]} Ke6 {[%emt 0:00:07]} 52. c4 {[%emt 0:00:24]} Bc6 {[%emt 0:01:00]} 53. Kc5 {[%emt 0:00:47]} Be4 {[%emt 0:00:34]} 54. Kb6 {[%emt 0:01:30]} g5 {[%emt 0:01:00]} 55. c5 {[%emt 0:00:41]} Bc2 {[%emt 0:01:23]} 56. Rd2 {[%emt 0:00:19]} 1-0

[Event "Mitropa Online Cup Women 2021"]
[Site "Hybrid"]
[Date "2021.05.04"]
[Round "1.5"]
[White "Trippold, Denise"]
[Black "Navrotescu, Andreea-Cristiana"]
[Result "0-1"]
[ECO "A10"]
[WhiteElo "2145"]
[BlackElo "2247"]
[Annotator "NA"]
[PlyCount "116"]
[EventDate "2021.05.04"]
[EventType "team-tourn"]
[EventCountry "NET"]
[SourceTitle "playchess.com"]
[Source "ChessBase"]
[SourceQuality "1"]
[WhiteTeam "Austria"]
[BlackTeam "France"]
[WhiteTeamCountry "AUT"]
[BlackTeamCountry "FRA"]
[TimeControl "40/5400+30:1800+30"]

1. c4 {[%emt 0:00:00]} e6 {[%emt 0:03:28]} 2. g3 {[%emt 0:01:32]} f5 {[%emt 0:01:52]} 3. Bg2 {[%emt 0:01:05]} Nf6 {[%emt 0:00:22]} 4. Nf3 {[%emt 0:00:36]} d5 {[%emt 0:00:58]} 5. O-O {[%emt 0:00:43]} c6 {[%emt 0:02:42]} 6. d3 {[%emt 0:06:15]} Be7 {[%emt 0:04:22]} 7. Nbd2 {[%emt 0:01:12]} O-O {[%emt 0:01:41]} 8. Qc2 {[%emt 0:07:28]} Nbd7 {[%emt 0:05:58]} 9. b3 {[%emt 0:08:56]} a5 {[%emt 0:05:24]} 10. Bb2 {[%emt 0:05:21]} Nc5 {[%emt 0:08:12]} 11. Rad1 {[%emt 0:07:22]} Bd7 {[%emt 0:07:35]} 12. Ne5 {[%emt 0:04:18]} Be8 {[%emt 0:03:56]} 13. Ndf3 {[%emt 0:07:03]} Bh5 {[%emt 0:11:04]} 14. Ba3 {[%emt 0:05:09]} Ncd7 {[%emt 0:06:13]} 15. Nxd7 {[%emt 0:04:08]} Nxd7 {[%emt 0:01:24]} 16. Bxe7 {[%emt 0:01:35]} Qxe7 {[%emt 0:00:05]} 17. d4 {[%emt 0:01:05]} Bxf3 {[%emt 0:11:47]} 18. Bxf3 {[%emt 0:02:11]} Qb4 {[%emt 0:02:38]} 19. Ra1 {[%emt 0:09:24]} a4 {[%emt 0:01:28]} 20. Rfb1 {[%emt 0:02:05]} Rfb8 {[%emt 0:05:13]} 21. e3 {[%emt 0:04:40]} axb3 {[%emt 0:01:51]} 22. axb3 {[%emt 0:00:17]} g6 {[%emt 0:05:14]} 23. Be2 {[%emt 0:09:36]} Ra3 {[%emt 0:00:41]} 24. Rxa3 {[%emt 0:00:35]} Qxa3 {[%emt 0:00:05]} 25. Qb2 {[%emt 0:01:22]} Ra8 {[%emt 0:01:20]} 26. Qxa3 {[%emt 0:01:52]} Rxa3 {[%emt 0:00:05]} 27. c5 {[%emt 0:01:01]} e5 {[%emt 0:02:46]} 28. b4 {[%emt 0:02:48]} Ra2 {[%emt 0:02:39]} 29. Bf3 {[%emt 0:03:01]} exd4 {[%emt 0:01:25]} 30. exd4 {[%emt 0:00:02]} Rd2 {[%emt 0:00:43]} 31. b5 {[%emt 0:00:48]} Rxd4 {[%emt 0:00:32]} 32. bxc6 {[%emt 0:00:04]} bxc6 {[%emt 0:00:05]} 33. Rb7 {[%emt 0:00:55]} Ne5 {[%emt 0:01:29]} 34. Be2 {[%emt 0:00:22]} Rd2 {[%emt 0:00:21]} 35. Kf1 {[%emt 0:01:39]} Rc2 {[%emt 0:00:20]} 36. h4 {[%emt 0:00:20]} Rc1+ {[%emt 0:00:27]} 37. Kg2 {[%emt 0:00:04]} Rxc5 {[%emt 0:00:28]} 38. h5 {[%emt 0:00:13]} Rc2 {[%emt 0:00:56]} 39. Kf1 {[%emt 0:00:48]} gxh5 {[%emt 0:00:40]} 40. Bxh5 {[%emt 0:00:00]} Ng4 {[%emt 0:00:00]} 41. Rc7 {[%emt 0:09:55]} d4 {[%emt 0:05:45]} 42. Bf7+ {[%emt 0:02:38]} Kf8 {[%emt 0:00:29]} 43. Bh5 {[%emt 0:06:54]} Rxf2+ {[%emt 0:03:19]} 44. Ke1 {[%emt 0:00:13]} Rc2 {[%emt 0:00:20]} 45. Rxh7 {[%emt 0:07:07]} Ne3 {[%emt 0:00:56]} 46. Rd7 {[%emt 0:02:46]} c5 {[%emt 0:01:05]} 47. Rf7+ {[%emt 0:00:19]} Kg8 {[%emt 0:00:32]} 48. Rd7 {[%emt 0:00:04]} Rg2 {[%emt 0:02:53]} 49. Rc7 {[%emt 0:01:23]} d3 {[%emt 0:01:32]} 50. Rd7 {[%emt 0:00:38]} c4 {[%emt 0:05:09]} 51. Bf3 {[%emt 0:01:19]} Rb2 {[%emt 0:01:06]} 52. Bh5 {[%emt 0:01:49]} Kh8 {[%emt 0:05:35]} 53. Bf3 {[%emt 0:00:25]} Rh2 {[%emt 0:01:31]} 54. Rd8+ {[%emt 0:02:34]} Kg7 {[%emt 0:00:12]} 55. Rd6 {[%emt 0:00:01]} Kf7 {[%emt 0:00:22]} 56. Bd5+ {[%emt 0:00:19]} Nxd5 {[%emt 0:01:02]} 57. Rxd5 {[%emt 0:00:03]} Ke6 {[%emt 0:00:24]} 58. Rd4 {[%emt 0:00:07]} Rc2 {[%emt 0:00:32]} 0-1

[Event "Mitropa Online Cup Women 2021"]
[Site "Hybrid"]
[Date "2021.05.04"]
[Round "1.5"]
[White "Hapala, Elisabeth"]
[Black "Thomas, Anysia"]
[Result "1/2-1/2"]
[ECO "B36"]
[WhiteElo "2120"]
[BlackElo "2164"]
[Annotator "NA"]
[PlyCount "116"]
[EventDate "2021.05.04"]
[EventType "team-tourn"]
[EventCountry "NET"]
[SourceTitle "playchess.com"]
[Source "ChessBase"]
[SourceQuality "1"]
[WhiteTeam "Austria"]
[BlackTeam "France"]
[WhiteTeamCountry "AUT"]
[BlackTeamCountry "FRA"]
[TimeControl "40/5400+30:1800+30"]

1. e4 {[%emt 0:00:00]} c5 {[%emt 0:00:11]} 2. Nf3 {[%emt 0:00:07]} g6 {[%emt 0:00:17]} 3. d4 {[%emt 0:00:10]} cxd4 {[%emt 0:00:12]} 4. Nxd4 {[%emt 0:00:10]} Nc6 {[%emt 0:00:20]} 5. c4 {[%emt 0:01:05]} Nf6 {[%emt 0:00:57]} 6. Nc3 {[%emt 0:01:18]} d6 {[%emt 0:00:38]} 7. Be2 {[%emt 0:16:24]} Nxd4 {[%emt 0:00:53]} 8. Qxd4 {[%emt 0:00:06]} Bg7 {[%emt 0:00:22]} 9. Be3 {[%emt 0:03:03]} O-O {[%emt 0:00:20]} 10. Qd2 {[%emt 0:00:28]} Be6 {[%emt 0:01:03]} 11. Rc1 {[%emt 0:01:23]} Qa5 {[%emt 0:00:32]} 12. b3 {[%emt 0:07:51]} Rfc8 {[%emt 0:01:22]} 13. f3 {[%emt 0:00:22]} a6 {[%emt 0:01:08]} 14. Na4 {[%emt 0:00:26]} Qxd2+ {[%emt 0:00:43]} 15. Kxd2 {[%emt 0:00:12]} Nd7 {[%emt 0:00:30]} 16. g4 {[%emt 0:00:11]} f5 {[%emt 0:00:26]} 17. gxf5 {[%emt 0:00:08]} gxf5 {[%emt 0:00:18]} 18. Rhg1 {[%emt 0:00:21]} Kh8 {[%emt 0:00:26]} 19. Bd3 {[%emt 0:08:18]} f4 {[%emt 0:03:11]} 20. Bf2 {[%emt 0:00:13]} Bf6 {[%emt 0:01:29]} 21. Nc3 {[%emt 0:30:53]} b5 {[%emt 0:40:33]} 22. Nd5 {[%emt 0:10:47]} Bxd5 {[%emt 0:02:07]} 23. cxd5 {[%emt 0:01:05]} Bb2 {[%emt 0:04:05]} 24. Rc2 {[%emt 0:01:59]} Rxc2+ {[%emt 0:07:18]} 25. Kxc2 {[%emt 0:00:11]} Bf6 {[%emt 0:10:17]} 26. Kd2 {[%emt 0:02:28]} Rc8 {[%emt 0:05:05]} 27. Rc1 {[%emt 0:03:04]} Rxc1 {[%emt 0:02:44]} 28. Kxc1 {[%emt 0:00:04]} Ne5 {[%emt 0:02:07]} 29. Be2 {[%emt 0:00:10]} Kg7 {[%emt 0:01:27]} 30. a4 {[%emt 0:03:27]} Kf7 {[%emt 0:07:14]} 31. axb5 {[%emt 0:00:25]} axb5 {[%emt 0:00:15]} 32. h3 {[%emt 0:05:20]} e6 {[%emt 0:01:14]} 33. Bxb5 {[%emt 0:00:53]} exd5 {[%emt 0:03:02]} 34. exd5 {[%emt 0:00:03]} Nxf3 {[%emt 0:00:19]} 35. Bf1 {[%emt 0:01:26]} Ne5 {[%emt 0:01:30]} 36. b4 {[%emt 0:00:25]} Bd8 {[%emt 0:00:36]} 37. Kc2 {[%emt 0:01:14]} Nd7 {[%emt 0:00:53]} 38. Kd3 {[%emt 0:00:56]} Kg6 {[%emt 0:00:16]} 39. Bg2 {[%emt 0:01:20]} Kg5 {[%emt 0:01:58]} 40. Kc4 {[%emt 0:00:00]} f3 {[%emt 0:00:00]} 41. Bf1 {[%emt 0:00:58]} Kf4 {[%emt 0:20:49]} 42. Kb5 {[%emt 0:16:23]} Ne5 {[%emt 0:03:15]} 43. Ka6 {[%emt 0:13:46]} Ke4 {[%emt 0:02:14]} 44. b5 {[%emt 0:00:06]} Kxd5 {[%emt 0:01:16]} 45. b6 {[%emt 0:00:19]} Nd7 {[%emt 0:03:03]} 46. Bb5 {[%emt 0:02:11]} Nxb6 {[%emt 0:02:56]} 47. Bxb6 {[%emt 0:00:03]} Bxb6 {[%emt 0:00:05]} 48. Kxb6 {[%emt 0:00:06]} Kd4 {[%emt 0:00:12]} 49. Kc6 {[%emt 0:01:10]} d5 {[%emt 0:00:12]} 50. Bf1 {[%emt 0:00:48]} h5 {[%emt 0:01:41]} 51. h4 {[%emt 0:00:19]} Ke4 {[%emt 0:00:37]} 52. Kc5 {[%emt 0:00:03]} d4 {[%emt 0:00:41]} 53. Kc4 {[%emt 0:00:04]} Ke3 {[%emt 0:00:18]} 54. Bd3 {[%emt 0:00:32]} f2 {[%emt 0:00:25]} 55. Bf1 {[%emt 0:00:08]} Ke4 {[%emt 0:00:29]} 56. Bd3+ {[%emt 0:00:31]} Ke3 {[%emt 0:00:09]} 57. Bf1 {[%emt 0:00:04]} Ke4 {[%emt 0:00:14]} 58. Bd3+ {[%emt 0:00:03]} Ke3 {[%emt 0:01:04]} 1/2-1/2

[Event "Mitropa Online Cup Women 2021"]
[Site "Hybrid"]
[Date "2021.05.04"]
[Round "2.2"]
[White "Trippold, Denise"]
[Black "Klek, Hanna Marie"]
[Result "0-1"]
[ECO "E05"]
[WhiteElo "2145"]
[BlackElo "2302"]
[Annotator "NA"]
[PlyCount "104"]
[EventDate "2021.05.04"]
[EventType "team-tourn"]
[EventCountry "NET"]
[SourceTitle "playchess.com"]
[Source "ChessBase"]
[SourceQuality "1"]
[WhiteTeam "Austria"]
[BlackTeam "Germany"]
[WhiteTeamCountry "AUT"]
[BlackTeamCountry "GER"]
[TimeControl "40/5400+30:1800+30"]

1. c4 {[%emt 0:00:00]} e6 {[%emt 0:00:12]} 2. g3 {[%emt 0:00:20]} d5 {[%emt 0:00:06]} 3. Bg2 {[%emt 0:00:31]} Nf6 {[%emt 0:00:07]} 4. Nf3 {[%emt 0:00:13]} Be7 {[%emt 0:00:06]} 5. O-O {[%emt 0:00:29]} O-O {[%emt 0:00:10]} 6. d4 {[%emt 0:01:55]} dxc4 {[%emt 0:00:07]} 7. Qc2 {[%emt 0:00:17]} b5 {[%emt 0:00:08]} 8. a4 {[%emt 0:01:04]} b4 {[%emt 0:00:15]} 9. Nfd2 {[%emt 0:01:01]} Nd5 {[%emt 0:01:22]} 10. Nxc4 {[%emt 0:00:40]} c5 {[%emt 0:08:29]} 11. dxc5 {[%emt 0:11:37]} Bxc5 {[%emt 0:06:13]} 12. Nbd2 {[%emt 0:03:29]} Ba6 {[%emt 0:02:17]} 13. Nb3 {[%emt 0:07:07]} Be7 {[%emt 0:02:39]} 14. Ne3 {[%emt 0:11:44]} Nd7 {[%emt 0:07:52]} 15. Nxd5 {[%emt 0:14:13]} exd5 {[%emt 0:00:09]} 16. Be3 {[%emt 0:04:34]} Nf6 {[%emt 0:14:56]} 17. Nd4 {[%emt 0:06:53]} Rc8 {[%emt 0:00:54]} 18. Nc6 {[%emt 0:09:46]} Kh8 {[%emt 0:12:37]} 19. Bh3 {[%emt 0:09:48]} Qd6 {[%emt 0:01:58]} 20. Rac1 {[%emt 0:01:19]} Bb7 {[%emt 0:01:05]} 21. Bxc8 {[%emt 0:02:01]} Rxc8 {[%emt 0:00:11]} 22. Bxa7 {[%emt 0:02:42]} Rxc6 {[%emt 0:00:58]} 23. Qf5 {[%emt 0:01:53]} Rc4 {[%emt 0:07:06]} 24. b3 {[%emt 0:02:05]} g6 {[%emt 0:04:46]} 25. Qf3 {[%emt 0:01:33]} Rxc1 {[%emt 0:06:47]} 26. Rxc1 {[%emt 0:00:06]} Kg8 {[%emt 0:06:04]} 27. Bd4 {[%emt 0:02:01]} Ne4 {[%emt 0:01:03]} 28. h4 {[%emt 0:00:34]} f6 {[%emt 0:04:27]} 29. Qe3 {[%emt 0:01:05]} Qd7 {[%emt 0:01:59]} 30. Qf3 {[%emt 0:00:37]} Kg7 {[%emt 0:02:29]} 31. Rc2 {[%emt 0:00:59]} Bd6 {[%emt 0:01:24]} 32. Rc1 {[%emt 0:00:55]} Be5 {[%emt 0:01:27]} 33. Bxe5 {[%emt 0:00:59]} fxe5 {[%emt 0:00:07]} 34. h5 {[%emt 0:00:01]} d4 {[%emt 0:03:27]} 35. Qd3 {[%emt 0:02:18]} Nc3 {[%emt 0:00:27]} 36. h6+ {[%emt 0:00:36]} Kxh6 {[%emt 0:00:25]} 37. Kh2 {[%emt 0:00:29]} Qd5 {[%emt 0:01:37]} 38. f3 {[%emt 0:00:10]} Qxb3 {[%emt 0:00:48]} 39. Rh1 {[%emt 0:00:17]} Kg7 {[%emt 0:00:29]} 40. Kg2 {[%emt 0:00:00]} Qd5 {[%emt 0:00:00]} 41. Qd2 {[%emt 0:07:30]} h5 {[%emt 0:06:48]} 42. Qg5 {[%emt 0:05:26]} e4 {[%emt 0:02:13]} 43. Qe7+ {[%emt 0:02:12]} Qf7 {[%emt 0:00:15]} 44. Qe5+ {[%emt 0:01:11]} Kh7 {[%emt 0:00:11]} 45. Rf1 {[%emt 0:04:51]} Nxe2 {[%emt 0:03:16]} 46. f4 {[%emt 0:02:00]} e3+ {[%emt 0:02:24]} 47. Kh2 {[%emt 0:00:24]} Nc3 {[%emt 0:03:54]} 48. f5 {[%emt 0:00:35]} Qa2+ {[%emt 0:00:08]} 49. Kh3 {[%emt 0:00:13]} Qg2+ {[%emt 0:00:04]} 50. Kh4 {[%emt 0:00:05]} Qh2+ {[%emt 0:00:02]} 51. Kg5 {[%emt 0:00:16]} Ne4+ {[%emt 0:00:03]} 52. Kf4 {[%emt 0:00:09]} Qxg3# {[%emt 0:00:05]} 0-1

[Event "Mitropa Online Cup Women 2021"]
[Site "Hybrid"]
[Date "2021.05.04"]
[Round "2.3"]
[White "Muetsch, Annmarie"]
[Black "Froewis, Annika"]
[Result "1-0"]
[ECO "C25"]
[WhiteElo "2266"]
[BlackElo "2143"]
[Annotator "NA"]
[PlyCount "57"]
[EventDate "2021.05.04"]
[EventType "team-tourn"]
[EventCountry "NET"]
[SourceTitle "playchess.com"]
[Source "ChessBase"]
[SourceQuality "1"]
[WhiteTeam "Germany"]
[BlackTeam "Austria"]
[WhiteTeamCountry "GER"]
[BlackTeamCountry "AUT"]
[TimeControl "40/5400+30:1800+30"]

1. e4 {[%emt 0:00:00]} e5 {[%emt 0:00:03]} 2. Nc3 {[%emt 0:00:14]} Nc6 {[%emt 0:00:28]} 3. g3 {[%emt 0:03:09]} a6 {[%emt 0:08:42]} 4. Bg2 {[%emt 0:02:45]} h5 {[%emt 0:07:19]} 5. h3 {[%emt 0:00:49]} Bc5 {[%emt 0:01:37]} 6. Nge2 {[%emt 0:01:10]} d6 {[%emt 0:01:14]} 7. d3 {[%emt 0:01:30]} h4 {[%emt 0:04:57]} 8. g4 {[%emt 0:00:19]} g5 {[%emt 0:01:17]} 9. Nd5 {[%emt 0:02:47]} f6 {[%emt 0:02:21]} 10. c3 {[%emt 0:01:35]} Ba7 {[%emt 0:06:14]} 11. d4 {[%emt 0:03:33]} Nce7 {[%emt 0:05:47]} 12. Qb3 {[%emt 0:06:34]} c6 {[%emt 0:05:47]} 13. Ne3 {[%emt 0:03:28]} Qb6 {[%emt 0:03:03]} 14. Qa3 {[%emt 0:04:37]} Qc7 {[%emt 0:06:02]} 15. Nf5 {[%emt 0:09:40]} Nxf5 {[%emt 0:08:28]} 16. gxf5 {[%emt 0:00:09]} c5 {[%emt 0:03:54]} 17. Be3 {[%emt 0:04:47]} Bd7 {[%emt 0:06:35]} 18. Rd1 {[%emt 0:04:02]} Ne7 {[%emt 0:01:12]} 19. Bf3 {[%emt 0:04:12]} Bb5 {[%emt 0:04:32]} 20. dxe5 {[%emt 0:05:10]} dxe5 {[%emt 0:00:53]} 21. b3 {[%emt 0:07:57]} O-O {[%emt 0:09:19]} 22. Qc1 {[%emt 0:03:49]} Bc6 {[%emt 0:02:47]} 23. Bxg5 {[%emt 0:09:12]} Nxf5 {[%emt 0:01:07]} 24. Rg1 {[%emt 0:00:29]} fxg5 {[%emt 0:01:44]} 25. exf5 {[%emt 0:00:30]} Bxf3 {[%emt 0:02:19]} 26. Qxg5+ {[%emt 0:00:12]} Kh8 {[%emt 0:00:29]} 27. Rd6 {[%emt 0:00:35]} Rf7 {[%emt 0:01:28]} 28. Rh6+ {[%emt 0:00:11]} Rh7 {[%emt 0:00:06]} 29. Qf6+ {[%emt 0:00:06]} 1-0

[Event "Mitropa Online Cup Women 2021"]
[Site "Hybrid"]
[Date "2021.05.04"]
[Round "2.6"]
[White "Navrotescu, Andreea-Cristiana"]
[Black "Juhasz, Barbara"]
[Result "1-0"]
[ECO "E68"]
[WhiteElo "2247"]
[BlackElo "2211"]
[Annotator "NA"]
[PlyCount "67"]
[EventDate "2021.05.04"]
[EventType "team-tourn"]
[EventCountry "NET"]
[SourceTitle "playchess.com"]
[Source "ChessBase"]
[SourceQuality "1"]
[WhiteTeam "France"]
[BlackTeam "Hungary"]
[WhiteTeamCountry "FRA"]
[BlackTeamCountry "HUN"]
[TimeControl "40/5400+30:1800+30"]

1. d4 {[%emt 0:00:00]} Nf6 {[%emt 0:00:09]} 2. c4 {[%emt 0:00:07]} g6 {[%emt 0:00:05]} 3. Nc3 {[%emt 0:00:17]} Bg7 {[%emt 0:00:08]} 4. g3 {[%emt 0:01:19]} O-O {[%emt 0:00:07]} 5. Bg2 {[%emt 0:00:11]} d6 {[%emt 0:00:06]} 6. Nf3 {[%emt 0:00:14]} Nbd7 {[%emt 0:00:09]} 7. O-O {[%emt 0:00:14]} e5 {[%emt 0:00:23]} 8. e4 {[%emt 0:00:11]} exd4 {[%emt 0:00:09]} 9. Nxd4 {[%emt 0:00:07]} Re8 {[%emt 0:00:07]} 10. h3 {[%emt 0:01:05]} Rb8 {[%emt 0:00:34]} 11. Be3 {[%emt 0:01:33]} a6 {[%emt 0:00:13]} 12. a4 {[%emt 0:00:41]} Ne5 {[%emt 0:00:28]} 13. b3 {[%emt 0:00:48]} Nc6 {[%emt 0:00:14]} 14. Ra2 {[%emt 0:04:05]} Nd7 {[%emt 0:15:18]} 15. f4 {[%emt 0:03:55]} Nb4 {[%emt 0:07:56]} 16. Rd2 {[%emt 0:06:39]} Qe7 {[%emt 0:15:09]} 17. Bf2 {[%emt 0:14:05]} Nc5 {[%emt 0:00:47]} 18. Re1 {[%emt 0:03:50]} Bd7 {[%emt 0:04:55]} 19. Nd5 {[%emt 0:17:48]} Nxd5 {[%emt 0:00:13]} 20. cxd5 {[%emt 0:02:39]} c6 {[%emt 0:13:51]} 21. b4 {[%emt 0:10:17]} Nxa4 {[%emt 0:00:34]} 22. dxc6 {[%emt 0:07:00]} Bxd4 {[%emt 0:08:03]} 23. Bxd4 {[%emt 0:05:21]} Bxc6 {[%emt 0:05:57]} 24. Qa1 {[%emt 0:01:40]} d5 {[%emt 0:04:21]} 25. Be5 {[%emt 0:10:31]} Rbc8 {[%emt 0:02:49]} 26. exd5 {[%emt 0:01:11]} Bb5 {[%emt 0:06:20]} 27. d6 {[%emt 0:02:24]} Qd7 {[%emt 0:00:06]} 28. Rc1 {[%emt 0:02:41]} Nb6 {[%emt 0:01:08]} 29. Rxc8 {[%emt 0:00:47]} Rxc8 {[%emt 0:01:20]} 30. Qd4 {[%emt 0:02:05]} Rc1+ {[%emt 0:04:22]} 31. Kh2 {[%emt 0:00:05]} Nc4 {[%emt 0:00:53]} 32. Bh8 {[%emt 0:00:28]} f6 {[%emt 0:01:42]} 33. Bd5+ {[%emt 0:00:27]} Kxh8 {[%emt 0:01:14]} 34. Qxf6+ {[%emt 0:00:05]} 1-0